Workbook

Sheet Kontoübersicht
A1: Geplante Ausgaben, Maiball 2016
A3: Kostenpunkt | D3: Betrag | E3: MwSt. Satz | F3: MwSt. Betrag | G3: Gezahlt am | H3: Anlage Nr | I3: Bemerkungen
A4: Stadthalle (Zahl aus 2015) | D4: =8629.76-2688 -> 5941.76 | E4: 0.19 | F4: =D4-(D4/1.19) -> 948.6843697 | I4: Stadthalle gesamt: | L4: =SUM(D4:D6) -> 9105.76
A5: Catering Stadthalle (Mitternachtssnack, Sektempfang) | B5: Adam Jassowicz | D5: 2856 | E5: 0.19 | F5: =D5-(D5/1.19) -> 456 | H5: 1 | I5: Stadthalle + Kuchen letztes Jahr: | L5: 9329.76
A6: Wertmarken 616 a 0,50€ | D6: =616*0.5 -> 308 | E6: 0.19 | F6: =D6-(D6/1.19) -> 49.17647059 | I6: Ersparnis: | L6: =L5-L4 -> 224
A8: Getränkeeinkauf/Verpflegung Tanzorchester/Rosen/Tänzer (REWE+Aldi) | D8: 103.27
A9: Automiete | D9: 36.68 | E9: 0.19 | F9: 5.86
A10: Parkticket | D10: 9 | E10: 0.19 | F10: 1.44
A12: Gage Tanzorchester | D12: 2300 | E12: 0 | F12: 0
A13: Gage DJ | D13: 100 | E13: 0 | F13: 0
A14: GEMA (8h, 700m², 45€, 550 Gäste, Werbung, bis 50% Tonträger) | D14: 1747.96 | E14: 0.07 | F14: =D14-(D14/1.07) -> 114.3525234
A15: Miete Räumlichkeiten Tanzkurs | D15: 250 | E15: 0 | F15: 0
A16: Gage Showact | D16: 250 | E16: 0 | F16: 0
A18: Briefmarken Ausland | D18: =0.9*1.13 -> 1.017 | E18: 0.19 | F18: =D18-(D18/1.19) -> 0.1623781513 | I18: Portoerhöhung 2016 um 13% berücksichtigt
A19: Kopiekosten Vera | D19: 30.59 | E19: 0.19 | F19: =D19-(D19/1.19) -> 4.884117647
A20: Porto/Briefe | D20: =144.4*1.13 -> 163.172 | E20: 0.19 | F20: =D20-(D20/1.19) -> 26.05267227 | I20: Portoerhöhung 2016 um 13% berücksichtigt
A21: Porto Briefe GEMA | D21: =2.9*1.13 -> 3.277 | E21: 0.19 | F21: =D21-(D21/1.19) -> 0.5232184874 | I21: Portoerhöhung 2016 um 13% berücksichtigt
A22: Druckkosten Karten | D22: 44.2 | E22: 0.19 | F22: 7.06
A24: Anzahlung Jugendherberge | D24: 1000 | E24: 0 | F24: 0
A25: Nachzahlung Jugendherberge | C25: Zu viel gezahlt, Gutschrift für 2016 22€ | D25: 759 | E25: 0 | F25: 0
A26: Steffis Hostel | D26: 764 | E26: 7% + 19% | F26: =44.5+13.41 -> 57.91
A28: Deko (Blumen + Papiermanschetten) | D28: 115 | E28: 0.07 | F28: 7.52
A29: Herzen + Satinbänder Spendeaktion | D29: 112.04 | E29: 19% auf Satin | F29: 3.39
A30: Deko (100 Teelichter) | D30: 9.99 | E30: 0.19 | F30: 1.6
A31: Deko (Tischläufer) | D31: 84.99 | E31: 0.19 | F31: 13.57
A32: Wertmarken | D32: 18.43 | E32: 0.19 | F32: 2.94
A34: Abschlussessen Orgateam | D34: 300
A35: Spende | D35: 500 | E35: 0 | F35: 0
A36: Geschenk Tanzkurslehrer | D36: 30 | E36: 0.19 | F36: =0.19*D36 -> 5.7
A37: Weinflasche + Studentenküsse | D37: =4.9+12.9 -> 17.8 | E37: ?? | F37: 0
A39: 4 Freikarten aus Pärchenspiel 20 15 | D39: =4*B45 -> 140 | E39: 0.19 | F39: =D39-(D39/1.19) -> 22.35294118
A41: Umsatzsteuer Einnahmen | D41: =SUM(F45:F49) -> 3310.0793
A42: Gesamt Ausgaben | D42: =SUM(D4:D41) -> 21306.2553 | F42: =SUM(F4:F41) -> 1729.178691
A44: Voraussichtliche Einnahmen, Maiball 2016 | B44: Einzelpreis | C44: Anzahl | D44: Netto | E44: UmSt. Satz | F44: UmSt. Betrag | G44: Anlage
A45: Eintrittskarten | B45: 35 | C45: =D45/B45 -> 569.4454286 | D45: =19970.59-40 -> 19930.59 | E45: 0.19 | F45: =(D45-E46)*0.19 -> 3310.0793
D46: davon: | E46: 2509.12 | F46: Jugendherberge
A48: Sponsoring | D48: 0 | E48: 0.19 | F48: =D48*0.19 -> 0
A49: Spendeneinnahmen | D49: 0 | E49: 0 | F49: 0
A52: Rückeinnahmen Jugendherberge+Steffis hostel
A53: Gutschrift Jugendherberge | D53: 22
A56: Gesamt Einnahmen | D56: =SUM(D45:D55) -> 19952.59
A57: Saldo abzüglich UmSt. | D57: =D56-D42 -> -1353.6653
A58: Saldo zuzüglich Voraussteuer | D58: =D57+F42 -> 375.5133914

Sheet Rückbuchungen
A1: Rückbuchungen
A3: Steffen Zaschka | C3: 50
A4: Baris Baloglu | C4: 27
A5: Lina Driouk | C5: 148
A6: David Retzmann | C6: 149
A7: Jan Klaas Janßen | C7: 30
A8: Felix Bergmann | C8: 99
A9: Leonie Schültke | C9: 50
A10: Tobias Stark | C10: 102
C11: 655
